[Event "Titled Tuesday Blitz September 27 Early 2022"]
[White "Nigmatov, Ortik"]
[Black "Timofeev, Artyom"]
[WhiteFideId "14202131"]
[BlackFideId "4140419"]
[WhiteElo "2378"]
[BlackElo "2579"]
[Result "0-1"]
[Round "10"]
[TimeControl "180+1"]
[Date "2022.09.27"]
[WhiteClock "0:00:29"]
[BlackClock "0:00:22"]

1. e4 {[%clk 0:03:00]}  c6 {[%clk 0:03:00]} 2. d4 {[%clk 0:03:00]}  d5 {[%clk 0:03:00]} 3. e5 {[%clk 0:03:00]}  Bf5 {[%clk 0:03:00]} 4. Nf3 {[%clk 0:03:00]}  e6 {[%clk 0:03:00]} 5. Be2 {[%clk 0:03:01]}  h6 {[%clk 0:02:58]} 6. O-O {[%clk 0:03:01]}  Ne7 {[%clk 0:02:59]} 7. a4 {[%clk 0:03:01]}  Nd7 {[%clk 0:02:57]} 8. a5 {[%clk 0:03:01]}  a6 {[%clk 0:02:57]} 9. b4 {[%clk 0:02:59]}  Ng6 {[%clk 0:02:52]} 10. c3 {[%clk 0:02:59]}  f6 {[%clk 0:02:52]} 11. Bd3 {[%clk 0:02:50]}  Bxd3 {[%clk 0:02:49]} 12. Qxd3 {[%clk 0:02:50]}  Kf7 {[%clk 0:02:50]} 13. Re1 {[%clk 0:02:34]}  Qc7 {[%clk 0:02:33]} 14. exf6 {[%clk 0:02:27]}  gxf6 {[%clk 0:02:30]} 15. Ra2 {[%clk 0:02:28]}  Re8 {[%clk 0:02:21]} 16. Rae2 {[%clk 0:02:28]}  Bd6 {[%clk 0:02:19]} 17. h4 {[%clk 0:02:14]}  h5 {[%clk 0:02:16]} 18. Bg5 {[%clk 0:02:10]}  Ndf8 {[%clk 0:02:09]} 19. Bd2 {[%clk 0:01:55]}  e5 {[%clk 0:01:52]} 20. dxe5 {[%clk 0:01:43]}  Nxe5 {[%clk 0:01:50]} 21. Nxe5+ {[%clk 0:01:37]}  Rxe5 {[%clk 0:01:49]} 22. Rxe5 {[%clk 0:01:34]}  Bxe5 {[%clk 0:01:46]} 23. c4 {[%clk 0:01:34]}  Qd7 {[%clk 0:01:39]} 24. Nc3 {[%clk 0:01:29]}  Ng6 {[%clk 0:01:05]} 25. cxd5 {[%clk 0:01:24]}  Rd8 {[%clk 0:01:05]} 26. Qf3 {[%clk 0:01:17]}  Qg4 {[%clk 0:01:04]} 27. Qxg4 {[%clk 0:01:11]}  hxg4 {[%clk 0:01:04]} 28. h5 {[%clk 0:01:11]}  Ne7 {[%clk 0:01:04]} 29. Re4 {[%clk 0:01:03]}  Nxd5 {[%clk 0:00:59]} 30. Nxd5 {[%clk 0:01:01]}  Rxd5 {[%clk 0:00:59]} 31. Be1 {[%clk 0:01:00]}  f5 {[%clk 0:00:58]} 32. Rc4 {[%clk 0:01:00]}  Kf6 {[%clk 0:00:53]} 33. Kf1 {[%clk 0:01:00]}  Kg5 {[%clk 0:00:52]} 34. Bc3 {[%clk 0:00:57]}  Bxc3 {[%clk 0:00:50]} 35. Rxc3 {[%clk 0:00:58]}  Kxh5 {[%clk 0:00:50]} 36. Rc4 {[%clk 0:00:45]}  Kg5 {[%clk 0:00:49]} 37. g3 {[%clk 0:00:45]}  Kf6 {[%clk 0:00:50]} 38. Ke2 {[%clk 0:00:45]}  Ke5 {[%clk 0:00:50]} 39. Ke3 {[%clk 0:00:45]}  Rb5 {[%clk 0:00:42]} 40. Kd3 {[%clk 0:00:41]}  Ke6 {[%clk 0:00:40]} 41. Ke3 {[%clk 0:00:40]}  Kf6 {[%clk 0:00:32]} 42. Kd3 {[%clk 0:00:39]}  Re5 {[%clk 0:00:31]} 43. Rf4 {[%clk 0:00:34]}  Ke6 {[%clk 0:00:31]} 44. Rc4 {[%clk 0:00:34]}  Kd6 {[%clk 0:00:30]} 45. Rf4 {[%clk 0:00:32]}  c5 {[%clk 0:00:30]} 46. bxc5+ {[%clk 0:00:32]}  Kxc5 {[%clk 0:00:30]} 47. Rc4+ {[%clk 0:00:32]}  Kd6 {[%clk 0:00:27]} 48. Rb4 {[%clk 0:00:31]}  Rb5 {[%clk 0:00:25]} 49. Rd4+ {[%clk 0:00:22]}  Rd5 {[%clk 0:00:22]} 50. Kc4 {[%clk 0:00:22]}  Rxd4+ {[%clk 0:00:22]} 51. Kxd4 {[%clk 0:00:23]}  b5 {[%clk 0:00:19]} 52. axb6 {[%clk 0:00:21]}  Kc6 {[%clk 0:00:19]} 53. Ke5 {[%clk 0:00:17]}  a5 {[%clk 0:00:19]} 54. Kxf5 {[%clk 0:00:17]}  a4 {[%clk 0:00:19]} 55. b7 {[%clk 0:00:18]}  Kxb7 {[%clk 0:00:19]} 56. Kxg4 {[%clk 0:00:19]}  a3 {[%clk 0:00:20]} 57. f4 {[%clk 0:00:20]}  a2 {[%clk 0:00:20]} 58. Kf5 {[%clk 0:00:21]}  a1=Q {[%clk 0:00:20]} 59. g4 {[%clk 0:00:21]}  Qg7 {[%clk 0:00:20]} 60. g5 {[%clk 0:00:22]}  Kc6 {[%clk 0:00:21]} 61. g6 {[%clk 0:00:22]}  Kd6 {[%clk 0:00:20]} 62. Kg5 {[%clk 0:00:23]}  Ke6 {[%clk 0:00:21]} 63. f5+ {[%clk 0:00:24]}  Ke5 {[%clk 0:00:21]} 64. Kh5 {[%clk 0:00:25]}  Kxf5 {[%clk 0:00:21]} 65. Kh4 {[%clk 0:00:26]}  Qxg6 {[%clk 0:00:21]} 66. Kh3 {[%clk 0:00:27]}  Kf4 {[%clk 0:00:22]} 67. Kh2 {[%clk 0:00:28]}  Kf3 {[%clk 0:00:22]} 68. Kh1 {[%clk 0:00:29]}  Qg2# {[%clk 0:00:22]} 0-1


[Site "https://www.chess.com"]

[Event "Titled Tuesday Blitz September 27 Early 2022"]
[White "Nord, Alexander"]
[Black "White, John S."]
[WhiteFideId "1738135"]
[BlackFideId "2502348"]
[WhiteElo "1968"]
[BlackElo "1840"]
[Result "1-0"]
[Round "10"]
[TimeControl "180+1"]
[Date "2022.09.27"]
[WhiteClock "0:00:45"]
[BlackClock "0:00:59"]

1. c4 {[%clk 0:03:00]}  Nf6 {[%clk 0:02:59]} 2. Nc3 {[%clk 0:03:00]}  g6 {[%clk 0:03:00]} 3. Nf3 {[%clk 0:02:58]}  Bg7 {[%clk 0:03:01]} 4. g3 {[%clk 0:02:58]}  d5 {[%clk 0:02:59]} 5. cxd5 {[%clk 0:02:57]}  Nxd5 {[%clk 0:02:58]} 6. Bg2 {[%clk 0:02:57]}  Nxc3 {[%clk 0:02:58]} 7. bxc3 {[%clk 0:02:56]}  Nc6 {[%clk 0:02:57]} 8. Rb1 {[%clk 0:02:54]}  b6 {[%clk 0:02:48]} 9. h4 {[%clk 0:02:51]}  Bb7 {[%clk 0:02:44]} 10. h5 {[%clk 0:02:49]}  Ne5 {[%clk 0:02:38]} 11. hxg6 {[%clk 0:01:55]}  hxg6 {[%clk 0:02:29]} 12. Rxh8+ {[%clk 0:01:54]}  Bxh8 {[%clk 0:02:26]} 13. Qa4+ {[%clk 0:01:54]}  Bc6 {[%clk 0:02:21]} 14. Qh4 {[%clk 0:01:52]}  Bf6 {[%clk 0:02:10]} 15. Qh7 {[%clk 0:01:49]}  Nxf3+ {[%clk 0:02:08]} 16. exf3 {[%clk 0:01:48]}  Kd7 {[%clk 0:02:04]} 17. Bh3+ {[%clk 0:01:39]}  e6 {[%clk 0:01:51]} 18. Qxf7+ {[%clk 0:01:39]}  Qe7 {[%clk 0:01:49]} 19. Bxe6+ {[%clk 0:01:37]}  Kd8 {[%clk 0:01:47]} 20. Qxe7+ {[%clk 0:01:36]}  Kxe7 {[%clk 0:01:47]} 21. Bg4 {[%clk 0:01:33]}  Re8 {[%clk 0:01:45]} 22. d4 {[%clk 0:01:31]}  Kf7+ {[%clk 0:01:44]} 23. Be3 {[%clk 0:01:28]}  Ba4 {[%clk 0:01:36]} 24. Kd2 {[%clk 0:01:26]}  c5 {[%clk 0:01:34]} 25. d5 {[%clk 0:01:23]}  Rd8 {[%clk 0:01:34]} 26. Be6+ {[%clk 0:01:22]}  Ke7 {[%clk 0:01:33]} 27. c4 {[%clk 0:01:21]}  Bd7 {[%clk 0:01:30]} 28. Bxd7 {[%clk 0:01:19]}  Rxd7 {[%clk 0:01:31]} 29. Rh1 {[%clk 0:01:17]}  Kd6 {[%clk 0:01:26]} 30. Bf4+ {[%clk 0:01:08]}  Be5 {[%clk 0:01:19]} 31. Bxe5+ {[%clk 0:01:01]}  Kxe5 {[%clk 0:01:20]} 32. Kd3 {[%clk 0:01:01]}  b5 {[%clk 0:01:20]} 33. Rh8 {[%clk 0:00:54]}  bxc4+ {[%clk 0:01:18]} 34. Kxc4 {[%clk 0:00:55]}  a5 {[%clk 0:01:06]} 35. Re8+ {[%clk 0:00:51]}  Kf6 {[%clk 0:01:04]} 36. Kxc5 {[%clk 0:00:51]}  Rc7+ {[%clk 0:01:03]} 37. Kb6 {[%clk 0:00:47]}  Rd7 {[%clk 0:01:02]} 38. Kc6 {[%clk 0:00:47]}  Rh7 {[%clk 0:01:00]} 39. d6 {[%clk 0:00:46]}  Ra7 {[%clk 0:00:59]} 40. d7 {[%clk 0:00:46]}  Ra6+ {[%clk 0:01:00]} 41. Kb5 {[%clk 0:00:45]}  Rc6 {[%clk 0:00:59]} 1-0


[Site "https://www.chess.com"]

[Event "Titled Tuesday Blitz September 27 Early 2022"]
[White "Odegov, Artem"]
[Black "Zong, Davis"]
[WhiteFideId "34183644"]
[BlackFideId "30903955"]
[WhiteElo "2286"]
[BlackElo "2061"]
[Result "1/2-1/2"]
[Round "10"]
[TimeControl "180+1"]
[Date "2022.09.27"]
[WhiteClock "0:00:34"]
[BlackClock "0:00:15"]

1. d4 {[%clk 0:03:00]}  d5 {[%clk 0:03:00]} 2. c4 {[%clk 0:03:00]}  c6 {[%clk 0:03:00]} 3. Nf3 {[%clk 0:03:01]}  Nf6 {[%clk 0:03:01]} 4. Nc3 {[%clk 0:03:01]}  e6 {[%clk 0:03:01]} 5. Bg5 {[%clk 0:03:00]}  dxc4 {[%clk 0:03:01]} 6. e4 {[%clk 0:03:01]}  b5 {[%clk 0:03:01]} 7. e5 {[%clk 0:03:02]}  h6 {[%clk 0:03:01]} 8. Bh4 {[%clk 0:03:02]}  g5 {[%clk 0:03:02]} 9. Nxg5 {[%clk 0:03:03]}  hxg5 {[%clk 0:03:03]} 10. Bxg5 {[%clk 0:03:04]}  Nbd7 {[%clk 0:03:02]} 11. g3 {[%clk 0:03:04]}  Bb7 {[%clk 0:02:56]} 12. Bg2 {[%clk 0:03:03]}  Bh6 {[%clk 0:02:47]} 13. Bxh6 {[%clk 0:02:55]}  Rxh6 {[%clk 0:02:48]} 14. exf6 {[%clk 0:02:55]}  Nxf6 {[%clk 0:02:47]} 15. Nxb5 {[%clk 0:02:53]}  cxb5 {[%clk 0:02:38]} 16. Bxb7 {[%clk 0:02:52]}  Rb8 {[%clk 0:02:38]} 17. Bg2 {[%clk 0:02:50]}  Rb6 {[%clk 0:02:13]} 18. O-O {[%clk 0:02:47]}  Rd6 {[%clk 0:02:12]} 19. Qe2 {[%clk 0:02:46]}  Kf8 {[%clk 0:02:07]} 20. Rad1 {[%clk 0:02:38]}  Rxd4 {[%clk 0:02:04]} 21. Rxd4 {[%clk 0:02:39]}  Qxd4 {[%clk 0:02:04]} 22. Rd1 {[%clk 0:02:39]}  Qc5 {[%clk 0:01:53]} 23. Qd2 {[%clk 0:02:34]}  Kg7 {[%clk 0:01:50]} 24. h4 {[%clk 0:02:31]}  Rh5 {[%clk 0:01:41]} 25. Bf3 {[%clk 0:02:29]}  Re5 {[%clk 0:01:38]} 26. Kg2 {[%clk 0:02:26]}  b4 {[%clk 0:01:36]} 27. Rc1 {[%clk 0:02:22]}  Nd5 {[%clk 0:01:32]} 28. h5 {[%clk 0:02:16]}  c3 {[%clk 0:01:26]} 29. bxc3 {[%clk 0:02:15]}  bxc3 {[%clk 0:01:25]} 30. h6+ {[%clk 0:02:15]}  Kh8 {[%clk 0:01:19]} 31. Qd3 {[%clk 0:02:12]}  Rg5 {[%clk 0:01:04]} 32. Bxd5 {[%clk 0:02:00]}  Qxd5+ {[%clk 0:01:04]} 33. Qxd5 {[%clk 0:02:00]}  Rxd5 {[%clk 0:01:03]} 34. Rxc3 {[%clk 0:02:00]}  Ra5 {[%clk 0:01:00]} 35. Rc7 {[%clk 0:01:59]}  Kg8 {[%clk 0:00:46]} 36. g4 {[%clk 0:01:44]}  Kh7 {[%clk 0:00:37]} 37. Rxf7+ {[%clk 0:01:18]}  Kxh6 {[%clk 0:00:36]} 38. Kg3 {[%clk 0:01:19]}  Kg6 {[%clk 0:00:33]} 39. Re7 {[%clk 0:01:17]}  Kf6 {[%clk 0:00:32]} 40. Rb7 {[%clk 0:01:17]}  Rxa2 {[%clk 0:00:31]} 41. f3 {[%clk 0:01:17]}  a5 {[%clk 0:00:30]} 42. Ra7 {[%clk 0:01:15]}  a4 {[%clk 0:00:29]} 43. Kf4 {[%clk 0:01:15]}  a3 {[%clk 0:00:24]} 44. Ra6 {[%clk 0:01:16]}  Ra1 {[%clk 0:00:22]} 45. g5+ {[%clk 0:01:16]}  Kf7 {[%clk 0:00:21]} 46. Ra7+ {[%clk 0:01:16]}  Kg6 {[%clk 0:00:15]} 47. Ra6 {[%clk 0:00:46]}  Kf7 {[%clk 0:00:13]} 48. g6+ {[%clk 0:00:39]}  Kxg6 {[%clk 0:00:13]} 49. Rxe6+ {[%clk 0:00:39]}  Kf7 {[%clk 0:00:13]} 50. Ra6 {[%clk 0:00:40]}  a2 {[%clk 0:00:13]} 51. Ra3 {[%clk 0:00:39]}  Kf6 {[%clk 0:00:12]} 52. Ra5 {[%clk 0:00:39]}  Ke6 {[%clk 0:00:12]} 53. Ra6+ {[%clk 0:00:39]}  Kf7 {[%clk 0:00:12]} 54. Ra4 {[%clk 0:00:35]}  Kf6 {[%clk 0:00:12]} 55. Ra5 {[%clk 0:00:36]}  Ke6 {[%clk 0:00:11]} 56. Re5+ {[%clk 0:00:30]}  Kf6 {[%clk 0:00:12]} 57. Re2 {[%clk 0:00:30]}  Kg6 {[%clk 0:00:08]} 58. Ke5 {[%clk 0:00:29]}  Rf1 {[%clk 0:00:06]} 59. Rg2+ {[%clk 0:00:27]}  Kf7 {[%clk 0:00:06]} 60. Rxa2 {[%clk 0:00:27]}  Rxf3 {[%clk 0:00:06]} 61. Ra6 {[%clk 0:00:26]}  Re3+ {[%clk 0:00:06]} 62. Kf5 {[%clk 0:00:26]}  Re1 {[%clk 0:00:06]} 63. Ra7+ {[%clk 0:00:26]}  Kf8 {[%clk 0:00:07]} 64. Kg6 {[%clk 0:00:26]}  Rg1+ {[%clk 0:00:07]} 65. Kf6 {[%clk 0:00:26]}  Rf1+ {[%clk 0:00:08]} 66. Ke6 {[%clk 0:00:27]}  Re1+ {[%clk 0:00:08]} 67. Kd6 {[%clk 0:00:28]}  Rd1+ {[%clk 0:00:09]} 68. Ke5 {[%clk 0:00:28]}  Re1+ {[%clk 0:00:09]} 69. Kf5 {[%clk 0:00:29]}  Rf1+ {[%clk 0:00:10]} 70. Ke4 {[%clk 0:00:30]}  Re1+ {[%clk 0:00:10]} 71. Kf3 {[%clk 0:00:31]}  Re7 {[%clk 0:00:10]} 72. Ra8+ {[%clk 0:00:30]}  Kf7 {[%clk 0:00:11]} 73. Ra4 {[%clk 0:00:31]}  Re6 {[%clk 0:00:11]} 74. Kf4 {[%clk 0:00:32]}  Rb6 {[%clk 0:00:11]} 75. Ke5 {[%clk 0:00:31]}  Rb5+ {[%clk 0:00:11]} 76. Kd6 {[%clk 0:00:32]}  Rh5 {[%clk 0:00:11]} 77. Rf4+ {[%clk 0:00:31]}  Kg6 {[%clk 0:00:12]} 78. Ke6 {[%clk 0:00:31]}  Rh1 {[%clk 0:00:12]} 79. Rg4+ {[%clk 0:00:31]}  Kh5 {[%clk 0:00:12]} 80. Rg8 {[%clk 0:00:31]}  Re1+ {[%clk 0:00:12]} 81. Kf5 {[%clk 0:00:32]}  Rf1+ {[%clk 0:00:13]} 82. Ke4 {[%clk 0:00:32]}  Rf2 {[%clk 0:00:13]} 83. Ke3 {[%clk 0:00:32]}  Rf1 {[%clk 0:00:13]} 84. Ke2 {[%clk 0:00:32]}  Rf7 {[%clk 0:00:13]} 85. Rg1 {[%clk 0:00:32]}  Kh6 {[%clk 0:00:13]} 86. Ke3 {[%clk 0:00:32]}  Kh5 {[%clk 0:00:14]} 87. Ke4 {[%clk 0:00:33]}  Kh4 {[%clk 0:00:14]} 88. Ke5 {[%clk 0:00:32]}  Kh5 {[%clk 0:00:14]} 89. Rg2 {[%clk 0:00:32]}  Rf1 {[%clk 0:00:15]} 90. Ke6 {[%clk 0:00:31]}  Rf3 {[%clk 0:00:14]} 91. Ke7 {[%clk 0:00:31]}  Rf1 {[%clk 0:00:15]} 92. Rg8 {[%clk 0:00:31]}  Rf3 {[%clk 0:00:15]} 93. Rh8+ {[%clk 0:00:32]}  Kg6 {[%clk 0:00:15]} 94. Ke6 {[%clk 0:00:33]}  Re3+ {[%clk 0:00:15]} 95. Kd5 {[%clk 0:00:33]}  Re1 {[%clk 0:00:15]} 96. Rh2 {[%clk 0:00:32]}  Re3 {[%clk 0:00:15]} 97. Kd4 {[%clk 0:00:32]}  Re1 {[%clk 0:00:15]} 98. Kd3 {[%clk 0:00:32]}  Re8 {[%clk 0:00:15]} 99. Kd2 {[%clk 0:00:33]}  Kf5 {[%clk 0:00:15]} 100. Re2 {[%clk 0:00:33]}  Rxe2+ {[%clk 0:00:15]} 101. Kxe2 {[%clk 0:00:34]} 1/2-1/2


[Site "https://www.chess.com"]

[Event "Titled Tuesday Blitz September 27 Early 2022"]
[White "Oparin, Grigoriy"]
[Black "Bharath Subramaniyam H"]
[WhiteFideId "24125890"]
[BlackFideId "46634827"]
[WhiteElo "2639"]
[BlackElo "2346"]
[Result "1-0"]
[Round "10"]
[TimeControl "180+1"]
[Date "2022.09.27"]
[WhiteClock "0:00:12"]
[BlackClock "0:00:04"]

1. d4 {[%clk 0:03:00]}  d5 {[%clk 0:02:58]} 2. c4 {[%clk 0:03:00]}  e6 {[%clk 0:02:58]} 3. Nf3 {[%clk 0:03:01]}  c6 {[%clk 0:02:58]} 4. g3 {[%clk 0:03:01]}  Nf6 {[%clk 0:02:56]} 5. Bg2 {[%clk 0:03:01]}  dxc4 {[%clk 0:02:57]} 6. a4 {[%clk 0:03:00]}  Bb4+ {[%clk 0:02:53]} 7. Bd2 {[%clk 0:02:57]}  Be7 {[%clk 0:02:52]} 8. O-O {[%clk 0:02:51]}  O-O {[%clk 0:02:48]} 9. Qc1 {[%clk 0:02:31]}  a5 {[%clk 0:02:47]} 10. Qxc4 {[%clk 0:02:30]}  Na6 {[%clk 0:02:47]} 11. Rd1 {[%clk 0:02:26]}  Nb4 {[%clk 0:02:48]} 12. Ne5 {[%clk 0:02:24]}  Nfd5 {[%clk 0:02:43]} 13. e4 {[%clk 0:02:16]}  Nb6 {[%clk 0:02:42]} 14. Qc3 {[%clk 0:02:15]}  Bd7 {[%clk 0:02:35]} 15. b3 {[%clk 0:02:13]}  Rc8 {[%clk 0:02:35]} 16. Be3 {[%clk 0:02:11]}  Be8 {[%clk 0:02:33]} 17. Na3 {[%clk 0:02:10]}  Qc7 {[%clk 0:02:25]} 18. Nac4 {[%clk 0:02:01]}  Nxc4 {[%clk 0:02:23]} 19. Nxc4 {[%clk 0:02:02]}  b5 {[%clk 0:02:09]} 20. Nd2 {[%clk 0:01:30]}  bxa4 {[%clk 0:02:04]} 21. bxa4 {[%clk 0:01:31]}  c5 {[%clk 0:01:59]} 22. Rdc1 {[%clk 0:01:32]}  Bc6 {[%clk 0:01:32]} 23. Nb3 {[%clk 0:01:14]}  cxd4 {[%clk 0:01:27]} 24. Bxd4 {[%clk 0:01:15]}  f6 {[%clk 0:01:14]} 25. Bh3 {[%clk 0:01:01]}  Qd7 {[%clk 0:01:12]} 26. Qe3 {[%clk 0:00:50]}  Kh8 {[%clk 0:00:56]} 27. Nc5 {[%clk 0:00:36]}  Bxc5 {[%clk 0:00:55]} 28. Bxc5 {[%clk 0:00:37]}  Rfe8 {[%clk 0:00:53]} 29. Bxb4 {[%clk 0:00:32]}  axb4 {[%clk 0:00:53]} 30. a5 {[%clk 0:00:33]}  Rb8 {[%clk 0:00:25]} 31. Rcb1 {[%clk 0:00:33]}  Rb5 {[%clk 0:00:18]} 32. a6 {[%clk 0:00:30]}  Ra8 {[%clk 0:00:19]} 33. Bf1 {[%clk 0:00:29]}  Rbb8 {[%clk 0:00:17]} 34. Rb2 {[%clk 0:00:17]}  Qd6 {[%clk 0:00:12]} 35. Rab1 {[%clk 0:00:15]}  Bb5 {[%clk 0:00:09]} 36. Rxb4 {[%clk 0:00:14]}  Bxf1 {[%clk 0:00:08]} 37. Rxb8+ {[%clk 0:00:14]}  Rxb8 {[%clk 0:00:09]} 38. Rxb8+ {[%clk 0:00:15]}  Qxb8 {[%clk 0:00:10]} 39. a7 {[%clk 0:00:14]}  Qa8 {[%clk 0:00:03]} 40. Qb6 {[%clk 0:00:12]}  h6 {[%clk 0:00:04]} 41. Qb8+ {[%clk 0:00:12]} 1-0


[Site "https://www.chess.com"]

[Event "Titled Tuesday Blitz September 27 Early 2022"]
[White "Ozen, Bahadir"]
[Black "Tomaszewski, Kacper"]
[WhiteFideId "6337058"]
[BlackFideId "1127373"]
[WhiteElo "2503"]
[BlackElo "2133"]
[Result "1/2-1/2"]
[Round "10"]
[TimeControl "180+1"]
[Date "2022.09.27"]
[WhiteClock "0:00:35"]
[BlackClock "0:00:08"]

1. g3 {[%clk 0:03:00]}  g6 {[%clk 0:02:59]} 2. Bg2 {[%clk 0:03:01]}  Bg7 {[%clk 0:03:00]} 3. Nf3 {[%clk 0:03:02]}  d5 {[%clk 0:02:58]} 4. O-O {[%clk 0:03:01]}  e5 {[%clk 0:02:57]} 5. d3 {[%clk 0:03:02]}  Nc6 {[%clk 0:02:58]} 6. e4 {[%clk 0:03:00]}  Nge7 {[%clk 0:02:58]} 7. c3 {[%clk 0:03:00]}  O-O {[%clk 0:02:58]} 8. b4 {[%clk 0:03:00]}  a6 {[%clk 0:02:57]} 9. Bb2 {[%clk 0:03:00]}  Be6 {[%clk 0:02:47]} 10. Ng5 {[%clk 0:02:58]}  Bc8 {[%clk 0:02:43]} 11. Nf3 {[%clk 0:02:51]}  Be6 {[%clk 0:02:42]} 12. Nbd2 {[%clk 0:02:46]}  h6 {[%clk 0:02:41]} 13. a4 {[%clk 0:02:42]}  f5 {[%clk 0:02:29]} 14. b5 {[%clk 0:02:41]}  Na5 {[%clk 0:02:28]} 15. exd5 {[%clk 0:02:34]}  Nxd5 {[%clk 0:02:15]} 16. c4 {[%clk 0:02:21]}  e4 {[%clk 0:02:15]} 17. Bxg7 {[%clk 0:02:19]}  exf3 {[%clk 0:02:12]} 18. Qxf3 {[%clk 0:02:10]}  Kxg7 {[%clk 0:02:06]} 19. cxd5 {[%clk 0:02:10]}  Bd7 {[%clk 0:02:01]} 20. Rfc1 {[%clk 0:02:10]}  axb5 {[%clk 0:01:59]} 21. axb5 {[%clk 0:02:10]}  Bxb5 {[%clk 0:01:58]} 22. Qf4 {[%clk 0:02:10]}  c6 {[%clk 0:01:53]} 23. Rab1 {[%clk 0:01:56]}  Kh7 {[%clk 0:01:40]} 24. d4 {[%clk 0:01:50]}  Rf7 {[%clk 0:01:32]} 25. dxc6 {[%clk 0:01:33]}  Bxc6 {[%clk 0:01:23]} 26. Nf3 {[%clk 0:01:32]}  Be4 {[%clk 0:01:20]} 27. Ne5 {[%clk 0:01:29]}  g5 {[%clk 0:00:57]} 28. Nxf7 {[%clk 0:01:24]}  gxf4 {[%clk 0:00:56]} 29. Nxd8 {[%clk 0:01:24]}  Bxb1 {[%clk 0:00:51]} 30. Rxb1 {[%clk 0:01:04]}  Rxd8 {[%clk 0:00:51]} 31. Rb5 {[%clk 0:01:04]}  Nc4 {[%clk 0:00:41]} 32. Rxf5 {[%clk 0:01:00]}  Rxd4 {[%clk 0:00:36]} 33. Bxb7 {[%clk 0:00:43]}  Nd6 {[%clk 0:00:35]} 34. Rc5 {[%clk 0:00:44]}  fxg3 {[%clk 0:00:24]} 35. Rc7+ {[%clk 0:00:41]}  Kg6 {[%clk 0:00:23]} 36. hxg3 {[%clk 0:00:42]}  Nxb7 {[%clk 0:00:14]} 37. Rxb7 {[%clk 0:00:42]}  h5 {[%clk 0:00:15]} 38. Rb6+ {[%clk 0:00:42]}  Kg5 {[%clk 0:00:15]} 39. Rb5+ {[%clk 0:00:42]}  Kg4 {[%clk 0:00:14]} 40. Kg2 {[%clk 0:00:43]}  Rd2 {[%clk 0:00:13]} 41. Ra5 {[%clk 0:00:41]}  Rc2 {[%clk 0:00:13]} 42. Rd5 {[%clk 0:00:41]}  Rb2 {[%clk 0:00:13]} 43. Rc5 {[%clk 0:00:41]}  Ra2 {[%clk 0:00:13]} 44. Rc4+ {[%clk 0:00:38]}  Kg5 {[%clk 0:00:13]} 45. Rf4 {[%clk 0:00:39]}  Rb2 {[%clk 0:00:13]} 46. Rf8 {[%clk 0:00:37]}  Ra2 {[%clk 0:00:13]} 47. Kh3 {[%clk 0:00:37]}  Ra1 {[%clk 0:00:10]} 48. Rg8+ {[%clk 0:00:36]}  Kh6 {[%clk 0:00:10]} 49. f4 {[%clk 0:00:33]}  Rh1+ {[%clk 0:00:10]} 50. Kg2 {[%clk 0:00:33]}  Ra1 {[%clk 0:00:10]} 51. Rg5 {[%clk 0:00:32]}  Ra2+ {[%clk 0:00:10]} 52. Kf3 {[%clk 0:00:32]}  Ra3+ {[%clk 0:00:08]} 53. Ke4 {[%clk 0:00:32]}  Ra4+ {[%clk 0:00:08]} 54. Kf5 {[%clk 0:00:32]}  Ra5+ {[%clk 0:00:08]} 55. Kf6 {[%clk 0:00:32]}  Ra6+ {[%clk 0:00:09]} 56. Kf7 {[%clk 0:00:32]}  Ra7+ {[%clk 0:00:09]} 57. Ke8 {[%clk 0:00:33]}  Ra8+ {[%clk 0:00:09]} 58. Kd7 {[%clk 0:00:33]}  Ra7+ {[%clk 0:00:10]} 59. Kd6 {[%clk 0:00:34]}  Ra6+ {[%clk 0:00:10]} 60. Ke7 {[%clk 0:00:34]}  Ra7+ {[%clk 0:00:10]} 61. Kf6 {[%clk 0:00:34]}  Ra6+ {[%clk 0:00:11]} 62. Kf7 {[%clk 0:00:32]}  Ra7+ {[%clk 0:00:11]} 63. Ke8 {[%clk 0:00:33]}  Ra8+ {[%clk 0:00:12]} 64. Kd7 {[%clk 0:00:33]}  Ra7+ {[%clk 0:00:12]} 65. Kc6 {[%clk 0:00:34]}  Ra6+ {[%clk 0:00:13]} 66. Kb7 {[%clk 0:00:34]}  Ra4 {[%clk 0:00:10]} 67. Rf5 {[%clk 0:00:34]}  Ra3 {[%clk 0:00:09]} 68. Rg5 {[%clk 0:00:34]}  Ra4 {[%clk 0:00:09]} 69. Kc6 {[%clk 0:00:34]}  h4 {[%clk 0:00:09]} 70. gxh4 {[%clk 0:00:34]}  Rxf4 {[%clk 0:00:09]} 71. Rd5 {[%clk 0:00:33]}  Rxh4 {[%clk 0:00:09]} 72. Kc5 {[%clk 0:00:33]}  Rh5 {[%clk 0:00:10]} 73. Kc4 {[%clk 0:00:34]}  Rxd5 {[%clk 0:00:08]} 74. Kxd5 {[%clk 0:00:35]} 1/2-1/2


[Site "https://www.chess.com"]

[Event "Titled Tuesday Blitz September 27 Early 2022"]
[White "Pacheco Lugo, Alejandro Jose"]
[Black "Bilan, Danila"]
[WhiteFideId "3903745"]
[BlackFideId "24161918"]
[WhiteElo "2146"]
[BlackElo "2164"]
[Result "0-1"]
[Round "10"]
[TimeControl "180+1"]
[Date "2022.09.27"]
[WhiteClock "0:00:01"]
[BlackClock "0:00:48"]

1. e4 {[%clk 0:01:32]}  c6 {[%clk 0:02:58]} 2. d4 {[%clk 0:01:32]}  d5 {[%clk 0:02:59]} 3. e5 {[%clk 0:01:32]}  c5 {[%clk 0:02:59]} 4. dxc5 {[%clk 0:01:32]}  Nc6 {[%clk 0:02:59]} 5. f4 {[%clk 0:01:31]}  e6 {[%clk 0:02:56]} 6. Be3 {[%clk 0:01:30]}  Nh6 {[%clk 0:02:55]} 7. c3 {[%clk 0:01:25]}  Be7 {[%clk 0:02:48]} 8. Nf3 {[%clk 0:01:21]}  O-O {[%clk 0:02:45]} 9. Nbd2 {[%clk 0:01:19]}  Nf5 {[%clk 0:02:41]} 10. Bf2 {[%clk 0:01:19]}  f6 {[%clk 0:02:27]} 11. exf6 {[%clk 0:01:13]}  Bxf6 {[%clk 0:02:20]} 12. Bd3 {[%clk 0:01:13]}  Qc7 {[%clk 0:02:12]} 13. g3 {[%clk 0:01:10]}  e5 {[%clk 0:02:02]} 14. fxe5 {[%clk 0:01:01]}  Nxe5 {[%clk 0:02:03]} 15. Nxe5 {[%clk 0:00:45]}  Bxe5 {[%clk 0:01:41]} 16. O-O {[%clk 0:00:17]}  Bd7 {[%clk 0:01:36]} 17. Nf3 {[%clk 0:00:13]}  Bf6 {[%clk 0:01:32]} 18. Nd4 {[%clk 0:00:13]}  Nh6 {[%clk 0:01:13]} 19. Bc2 {[%clk 0:00:12]}  Ng4 {[%clk 0:01:09]} 20. Qd3 {[%clk 0:00:11]}  g6 {[%clk 0:01:06]} 21. b4 {[%clk 0:00:11]}  Rf7 {[%clk 0:01:03]} 22. Be3 {[%clk 0:00:09]}  Nxe3 {[%clk 0:00:55]} 23. Qxe3 {[%clk 0:00:10]}  Raf8 {[%clk 0:00:55]} 24. Rae1 {[%clk 0:00:05]}  Bh3 {[%clk 0:00:52]} 25. Rxf6 {[%clk 0:00:03]}  Rxf6 {[%clk 0:00:50]} 26. Bd3 {[%clk 0:00:01]}  Qf7 {[%clk 0:00:48]} 27. Qe2 {[%clk 0:00:01]}  Rf2 {[%clk 0:00:48]} 0-1


[Site "https://www.chess.com"]